bitfinex-derivatives/quotes_ETHF0:USTF0_20241008
["timestamp","ask_amount","ask_price","bid_price","bid_amount"]
[1728350534024,0.41159,2430.2,2429.9,3.622]
[1728350534319,0.4056,2430.0,2429.9,0.82583]
[1728350534820,0.816,2430.0,2429.9,0.4142]
[1728350535114,0.816,2430.0,2429.8,0.3917]
[1728350535316,0.41164,2429.9,2429.8,0.3917]
[1728350535520,0.41164,2429.9,2429.6,4.01948]
[1728350535725,0.41167,2429.8,2429.6,0.8241]
[1728350536317,0.41167,2429.7,2429.6,0.8241]
[1728350536916,0.41166,2429.8,2429.6,1.23579]
[1728350538622,0.41165,2429.8,2429.6,1.23578]
[1728350539425,1.60060944,2429.9,2429.6,1.23578]
[1728350539828,1.60060944,2429.9,2429.6,0.8241]
[1728350540031,0.41166,2429.8,2429.6,1.23578]
[1728350540336,1.18895944,2429.9,2429.6,0.8241]
[1728350540632,0.41167,2429.8,2429.6,0.8241]
[1728350542323,0.41167,2429.8,2429.6,1.23579]
[1728350542526,0.41167,2429.8,2429.6,0.8241]
[1728350544533,0.41167,2429.7,2429.6,0.8241]
[1728350544832,0.41167,2429.7,2429.4,1.89171]
[1728350545033,0.8112,2429.6,2429.4,1.89171]
[1728350545932,0.8112,2429.6,2429.5,0.41171]
[1728350547029,5.3389,2429.6,2429.4,1.89172]
[1728350547334,0.41171,2429.5,2429.3,2.2868]
[1728350547636,0.41172,2429.4,2429.3,0.4198]
[1728350547935,1.84045,2429.6,2429.2,0.41175]
[1728350548126,0.41174,2429.3,2429.2,0.4072]
[1728350550034,1.8652,2429.5,2429.1,1.883]
[1728350550333,0.79776,2429.2,2429.0,0.41178]
[1728350550530,0.4025,2429.1,2429.0,0.41178]
[1728350551027,0.81427,2429.1,2429.0,0.41178]
[1728350551237,0.4025,2429.1,2429.0,0.41178]
[1728350551927,0.15785941,2429.6,2429.0,0.41178]
[1728350551928,4.6018,2430.1,2429.0,4.1168]
[1728350552131,0.4157,2429.7,2429.4,1.48]
[1728350552330,0.41169,2429.6,2429.5,1.2666]
[1728350553033,0.4157,2429.7,2429.6,0.41169]
[1728350553237,1.19224602,2429.9,2429.5,2.7466]
[1728350553539,0.41164,2429.9,2429.7,0.41166]
[1728350553932,2.01082602,2430.0,2429.5,1.2666]
[1728350554135,3.2078,2430.1,2429.8,0.41165]
[1728350554342,0.41163,2430.0,2429.9,0.4102]
[1728350555041,0.41162,2430.1,2429.9,0.4102]
[1728350555232,0.41162,2430.1,2430.0,0.8402]
[1728350557745,0.41162,2430.1,2430.0,0.4131]
[1728350558335,0.41165,2429.8,2429.7,3.2078]
[1728350558538,1.89165,2429.8,2429.7,3.2078]
[1728350558743,0.41171,2429.5,2429.3,3.3038]
[1728350558948,0.41171,2429.5,2429.3,3.5971]
[1728350560244,0.82208,2429.7,2429.4,0.41171]
[1728350560450,3.6333,2430.0,2429.5,1.48]
[1728350560754,0.41165,2429.9,2429.6,0.41168]
[1728350560940,0.41165,2429.9,2429.7,0.3896]
[1728350561141,0.41165,2429.9,2429.7,0.7923]
[1728350561442,0.41165,2429.8,2429.7,0.7923]
[1728350561748,0.41165,2429.9,2429.7,0.7923]
[1728350561948,0.41164,2429.9,2429.7,0.7923]
[1728350563648,0.41165,2429.9,2429.7,0.7923]
[1728350564251,0.41165,2429.8,2429.7,0.7923]
[1728350565044,0.41165,2429.8,2429.3,0.096]
[1728350565045,0.41172,2429.4,2429.3,0.096]
[1728350565248,0.41172,2429.4,2429.3,0.386]
[1728350566950,0.3975,2429.5,2429.3,0.386]
[1728350567248,0.4117,2429.6,2429.3,4.00553]
[1728350567444,1.02914,2429.8,2429.4,0.41172]
[1728350567445,0.41168,2429.7,2429.4,0.41172]
[1728350568247,0.4254,2429.8,2429.3,3.5938]
[1728350568653,0.41169,2429.6,2429.3,4.00553]
[1728350570946,0.41169,2429.6,2429.3,3.5938]
[1728350571149,0.41169,2429.6,2429.4,0.41172]
[1728350571556,0.41169,2429.6,2429.3,4.00553]
[1728350572753,0.41172,2429.5,2429.3,3.5938]
[1728350572955,0.41172,2429.5,2429.3,4.00554]
[1728350574347,0.41172,2429.4,2429.3,3.5938]
[1728350579145,0.83932,2429.4,2429.3,3.5938]
[1728350579545,0.41172,2429.4,2429.3,3.5938]
[1728350580750,0.7741,2429.8,2429.4,0.41172]
[1728350580751,1.80327,2429.8,2429.4,0.41172]
[1728350580952,0.4117,2429.6,2429.5,0.4102]
[1728350581258,0.41172,2429.5,2429.3,4.00553]
[1728350581454,0.41172,2429.5,2429.3,4.004]
[1728350581654,0.41172,2429.5,2429.3,4.41573]
[1728350581850,0.41169,2429.6,2429.4,0.41172]
[1728350582256,0.41171,2429.5,2429.3,4.41573]
[1728350582455,2.89466,2429.8,2429.3,4.41573]
[1728350582755,0.41171,2429.5,2429.3,4.41573]
[1728350583660,0.4117,2429.6,2429.3,4.41573]
[1728350583862,2.89466,2429.8,2429.3,4.41573]
[1728350584253,0.41171,2429.5,2429.3,4.004]
[1728350584454,0.41172,2429.4,2429.3,4.004]
[1728350584957,0.41172,2429.4,2429.3,3.5938]
[1728350585358,0.41172,2429.4,2429.3,0.386]
[1728350586161,0.41177,2429.1,2429.0,3.2078]
[1728350591054,1.84646,2429.3,2429.0,3.2078]
[1728350591055,0.80875,2429.3,2429.1,0.41176]
[1728350591259,0.4044,2429.6,2429.2,1.48]
[1728350591458,0.41171,2429.5,2429.4,0.41172]
[1728350591665,1.02921,2429.7,2429.3,4.4003]
[1728350592062,0.41172,2429.5,2429.3,4.4003]
[1728350592261,0.41172,2429.4,2429.3,1.1925]
[1728350592958,0.41172,2429.4,2429.1,0.41177]
[1728350593159,0.41172,2429.4,2429.2,0.8163]
[1728350593466,0.41172,2429.4,2429.2,1.22805]
[1728350593664,0.81092,2429.4,2429.2,1.22805]
[1728350594275,0.81093,2429.4,2429.2,0.8163]
[1728350594471,0.81093,2429.4,2429.2,1.22805]
[1728350595165,0.3992,2429.4,2429.2,0.8163]
[1728350595369,0.41174,2429.3,2429.2,0.8163]
[1728350597969,1.20188213,2429.5,2429.2,1.22805]
[1728350598170,0.41172,2429.4,2429.2,1.22805]
[1728350598467,0.83281,2429.5,2429.3,0.41174]
[1728350598669,1.17798213,2429.6,2429.3,3.2078]
[1728350598670,0.8089,2429.6,2429.3,3.2078]
[1728350598870,0.8089,2429.6,2429.4,0.41172]
[1728350599055,0.3972,2429.6,2429.3,3.61953]
[1728350599266,0.41171,2429.5,2429.3,3.61953]
[1728350599768,0.3972,2429.6,2429.3,3.2078]
[1728350599964,0.41172,2429.4,2429.3,3.2078]
[1728350600159,1.17798213,2429.6,2429.3,3.2078]
[1728350600367,0.41171,2429.5,2429.3,3.61954]
[1728350603770,0.41171,2429.5,2429.3,0.41174]
[1728350606173,0.41166,2429.8,2429.5,0.41171]
[1728350606361,0.41166,2429.8,2429.6,0.83307]
[1728350606868,0.4266,2430.0,2429.7,0.4259]
[1728350607069,0.41164,2429.9,2429.8,0.41165]
[1728350607268,0.41164,2429.9,2429.8,0.3997]
[1728350608270,0.83823,2430.0,2429.8,0.81135]
[1728350608469,0.41163,2430.0,2429.8,0.81135]
[1728350610074,0.78109954,2430.2,2430.1,0.4116]
[1728350610264,0.3948,2430.3,2430.1,1.8916]
[1728350610468,0.3948,2430.3,2430.2,0.4064]
[1728350610667,0.41157,2430.4,2430.2,0.8261]
[1728350611071,0.78109954,2430.5,2430.2,0.8261]
[1728350611273,0.41157,2430.3,2430.2,0.8261]
[1728350612574,5.5952,2430.3,2430.0,3.2078]
[1728350612876,0.41163,2430.0,2429.8,1.71295]
[1728350613175,0.41163,2430.0,2429.8,1.61695]
[1728350613975,1.57485351,2430.2,2429.8,1.61695]
[1728350614271,0.41164,2429.9,2429.8,0.8056]
[1728350614473,0.41167,2429.8,2429.7,0.41167]
[1728350614676,0.80197,2429.8,2429.6,4.46878]
[1728350614873,0.80197,2429.8,2429.7,0.41167]
[1728350615072,0.3903,2429.8,2429.7,0.41167]
[1728350615277,0.41163,2430.0,2429.8,0.41164]
[1728350615474,1.8703,2430.1,2429.6,5.5371]
[1728350615670,0.41163,2430.0,2429.9,0.41163]
[1728350616182,0.41162,2430.0,2429.9,0.41163]
[1728350616583,2.28192,2430.1,2429.9,0.41163]
[1728350617687,0.80192,2430.1,2429.9,0.41163]
[1728350617887,0.80192,2430.1,2430.0,0.7748]
[1728350618187,0.3903,2430.1,2430.0,1.18642]
[1728350618489,4.5055,2430.1,2430.0,1.18642]
[1728350619081,0.41156,2430.4,2430.2,0.41158]
[1728350619482,2.3056,2430.5,2430.2,0.41158]
[1728350619775,2.71715,2430.5,2430.2,0.41158]
[1728350621487,2.3056,2430.5,2430.3,0.41155]
[1728350621693,2.3056,2430.5,2430.4,0.423]
[1728350621894,2.3056,2430.5,2430.4,0.8096]
[1728350622088,6.83154,2430.5,2430.4,0.8096]
[1728350623098,6.83154,2430.5,2430.4,0.423]
[1728350624197,7.61058505,2430.5,2430.4,0.423]
[1728350624992,3.49618505,2430.5,2430.4,0.423]
[1728350625192,2.71714,2430.5,2430.4,0.423]
[1728350628197,2.3056,2430.5,2430.4,0.423]
[1728350628399,2.71714,2430.5,2430.4,0.423]
[1728350631000,2.71714,2430.5,2430.3,0.41157]
[1728350631601,2.71714,2430.5,2430.2,3.2078]
[1728350631895,2.71714,2430.5,2430.3,0.41157]
[1728350633599,2.71714,2430.5,2430.2,3.61937]
[1728350633988,2.71714,2430.5,2430.3,0.41157]
[1728350634492,2.71714,2430.5,2430.3,0.82287]
[1728350634688,2.71714,2430.5,2430.3,0.4113]
[1728350635095,2.71714,2430.5,2430.3,0.82286]
[1728350636391,2.71714,2430.5,2430.2,3.2078]
[1728350636392,1.48,2430.4,2430.2,3.2078]
[1728350636595,0.41157,2430.3,2430.2,3.2078]
[1728350637396,0.41158,2430.3,2430.1,0.4116]
[1728350638894,0.41156,2430.4,2430.2,0.41159]
[1728350639099,0.41156,2430.4,2430.3,0.4144]
[1728350639604,0.41155,2430.4,2430.3,0.4144]
[1728350639801,1.23714,2430.5,2430.3,0.82596]
[1728350641101,0.8256,2430.5,2430.3,0.4144]
[1728350641303,0.41155,2430.4,2430.3,0.4144]
[1728350642602,1.23714,2430.5,2430.3,0.82597]
[1728350642799,1.23714,2430.5,2430.3,0.4144]
[1728350644303,1.48,2430.8,2430.3,0.4144]
[1728350644498,1.57833456,2430.8,2430.5,0.41154]
[1728350644691,1.16683456,2430.8,2430.4,0.3946]
[1728350644896,0.3871,2430.8,2430.6,0.41151]
[1728350645096,0.3871,2430.8,2430.7,0.4007]
[1728350645303,5.24167892,2430.9,2430.7,0.4007]
[1728350645702,5.24167892,2430.9,2430.8,0.4013]
[1728350645898,6.02154201,2430.9,2430.8,0.4013]
[1728350646203,6.43301201,2430.9,2430.8,0.4013]
[1728350646507,7.13314892,2430.9,2430.8,0.4013]
[1728350647506,1.89147,2430.9,2430.8,0.4013]
[1728350648002,2.67235,2431.1,2430.8,0.4013]
[1728350648203,2.2609,2431.1,2430.8,0.4013]
[1728350648402,0.41146,2431.0,2430.8,0.4013]
[1728350648602,2.2609,2431.1,2430.8,0.4013]
[1728350648805,0.41147,2430.9,2430.8,0.4013]
[1728350649607,0.41146,2431.0,2430.8,0.4013]
[1728350649907,2.67235,2431.1,2430.8,0.81278]
[1728350650101,2.27855,2431.1,2430.8,0.81278]
[1728350650598,2.27855,2431.1,2430.8,0.81277]
[1728350650599,2.27854,2431.1,2430.8,0.81277]
[1728350651006,0.3871,2431.1,2430.9,0.41146]
[1728350651402,0.3871,2431.1,2430.9,0.83766]
[1728350652406,2.28402,2431.3,2431.0,0.41145]
[1728350652606,0.41142,2431.2,2431.1,0.4118]
[1728350653511,0.3926,2431.3,2431.1,0.82322]
[1728350653713,0.3926,2431.3,2431.1,0.4118]
[1728350654010,2.27649,2431.4,2431.2,0.3866]
[1728350655106,0.4114,2431.3,2431.2,0.3866]
[1728350655304,1.8651,2431.4,2431.2,0.3866]
[1728350655305,2.2765,2431.4,2431.2,0.3866]
[1728350656611,2.2765,2431.4,2431.2,0.79802]
[1728350656811,2.2765,2431.4,2431.2,0.3866]
[1728350657515,0.3851,2431.4,2431.3,0.4114]
[1728350662520,0.4114,2431.3,2431.2,0.3866]
[1728350662712,1.8914,2431.3,2431.2,0.3866]
[1728350664323,1.48,2431.3,2431.2,0.3866]
[1728350666914,1.89141,2431.3,2431.1,4.03103]
[1728350667222,0.4264,2431.2,2431.1,4.03103]
[1728350668915,1.8651,2431.4,2431.1,3.6196]
[1728350669115,0.4264,2431.3,2431.1,4.03103]
[1728350669810,0.4264,2431.3,2431.2,0.41142]
[1728350670130,0.41135,2431.6,2431.4,0.41138]
[1728350670318,0.41138,2431.5,2431.2,0.41142]
[1728350672616,0.41138,2431.5,2431.3,0.4114]
[1728350674117,2.29886,2431.6,2431.4,0.41138]
[1728350674326,2.29886,2431.6,2431.5,0.395]
[1728350674821,6.41166,2431.6,2431.5,0.395]
[1728350675219,6.0003,2431.6,2431.5,0.395]
[1728350675424,6.0003,2431.6,2431.5,0.8038]
[1728350675819,6.41165,2431.6,2431.5,0.8038]
[1728350676526,6.0003,2431.6,2431.5,0.8038]
[1728350676919,4.5203,2431.6,2431.5,1.21517]
[1728350677822,0.20642343,2431.8,2431.7,0.41133]
[1728350678124,1.22428,2432.1,2431.9,0.4113]
[1728350678320,1.22428,2432.1,2432.0,0.3992]
[1728350678321,0.813,2432.1,2432.0,0.3992]
[1728350678520,0.813,2432.1,2432.0,0.8036]
[1728350680521,1.22427,2432.1,2432.0,0.8036]
[1728350681924,0.813,2432.1,2432.0,0.8036]
[1728350682228,0.41,2432.1,2432.0,1.21488]
[1728350683429,0.41,2432.1,2432.0,0.8036]
[1728350683829,0.82127,2432.1,2432.0,0.8036]
[1728350684728,0.4113,2431.9,2431.8,3.2078]
[1728350684926,1.8913,2431.9,2431.8,3.2078]
[1728350685326,2.3038,2431.9,2431.8,3.2078]
[1728350685721,0.41133,2431.8,2431.6,0.7883]
[1728350685925,0.4251,2431.7,2431.6,3.9961]
[1728350686127,0.4251,2431.7,2431.6,4.40745]
[1728350686325,0.4251,2431.7,2431.6,3.9961]
[1728350686527,0.83643,2431.7,2431.6,3.9961]
[1728350686726,0.4251,2431.7,2431.6,0.7883]
[1728350686923,0.83643,2431.7,2431.6,0.7883]
[1728350687431,0.4251,2431.7,2431.3,7.81619]
[1728350687636,0.41136,2431.6,2431.3,4.41959]
[1728350687823,0.4251,2431.7,2431.3,4.41959]
[1728350688028,0.41136,2431.6,2431.3,4.41959]
[1728350688534,0.41138,2431.4,2431.3,4.0082]
[1728350688936,0.4051,2431.5,2431.3,4.0082]
[1728350689128,0.81648,2431.5,2431.3,4.4196]
[1728350692135,0.4051,2431.5,2431.4,0.41138]
[1728350692333,0.83645,2431.7,2431.4,0.41138]
[1728350692533,0.41135,2431.6,2431.4,2.28468]
[1728350692733,0.83645,2431.7,2431.4,2.28468]
[1728350692933,0.41135,2431.6,2431.4,2.28468]
[1728350693141,0.83644,2431.7,2431.4,2.28468]
[1728350693637,0.4251,2431.7,2431.4,2.28468]
[1728350693841,0.41136,2431.6,2431.4,2.28468]
[1728350694140,0.41136,2431.6,2431.4,1.8733]
[1728350694540,0.41137,2431.5,2431.3,5.4882]
[1728350695235,0.4251,2431.7,2431.3,5.4882]
[1728350695439,0.4251,2431.7,2431.3,5.89959]
[1728350695639,0.41137,2431.5,2431.3,5.89959]
[1728350697641,0.41136,2431.6,2431.3,5.4882]
[1728350697834,0.83644,2431.7,2431.4,1.48]
[1728350698142,0.83644,2431.7,2431.5,0.83776]
[1728350698337,0.83644,2431.7,2431.5,0.4264]
[1728350698647,0.41135,2431.6,2431.5,0.4264]
[1728350701442,0.41137,2431.5,2431.4,1.48]
[1728350702038,4.1128,2431.5,2431.3,0.4003]
[1728350702237,0.41142,2431.2,2431.1,0.9109]
[1728350702439,0.41142,2431.2,2431.1,0.3952]
[1728350704644,0.78112179,2431.3,2431.1,5.9888]
[1728350704948,0.41139,2431.4,2431.2,1.89141]
[1728350705148,0.41139,2431.4,2431.3,0.4016]
[1728350705640,0.8239,2431.6,2431.3,0.4016]
[1728350705839,0.41137,2431.5,2431.4,0.3898]
[1728350710448,0.8239,2431.6,2431.1,0.3952]
[1728350710649,1.02846,2431.5,2431.2,0.402]
[1728350710852,0.4114,2431.3,2431.2,0.402]
[1728350711252,0.4114,2431.3,2431.1,0.3952]
[1728350711253,0.41142,2431.2,2431.1,0.3952]
[1728350711552,1.20552,2431.2,2431.1,0.3952]
[1728350712462,0.41143,2431.1,2431.0,0.4053]
[1728350712656,0.41143,2431.1,2431.0,0.8195]
[1728350716861,0.4115,2430.7,2430.6,3.3038]
[1728350717063,0.41152,2430.6,2430.5,0.8336]
[1728350717267,0.82792,2430.6,2430.5,0.4249]
[1728350719366,0.41154,2430.5,2430.4,0.4228]
[1728350720162,0.41154,2430.5,2430.4,0.15523489]
[1728350722459,0.82793,2430.6,2430.4,0.15523489]
[1728350722659,0.82793,2430.6,2430.4,0.58243489]
[1728350723258,0.41153,2430.5,2430.4,0.58243489]
[1728350724067,0.82792,2430.6,2430.4,0.58243489]
[1728350727175,0.41153,2430.5,2430.4,0.58243489]
[1728350727373,0.82792,2430.6,2430.4,0.58243489]
[1728350728865,0.41158,2430.2,2430.1,0.096]
[1728350729174,0.41158,2430.2,2430.0,0.803]
[1728350729868,0.41157,2430.3,2430.0,1.21461]
[1728350731568,0.4116,2430.2,2430.0,0.803]
[1728350732176,0.4116,2430.2,2430.0,1.21462]
[1728350733870,0.41158,2430.3,2430.0,1.21462]
[1728350734069,0.4227,2430.2,2430.0,1.21462]
[1728350734267,0.83429,2430.2,2430.0,1.21462]
[1728350736477,0.83429,2430.2,2430.0,1.21461]
[1728350736865,0.4227,2430.2,2430.0,1.21461]
[1728350737065,1.9027,2430.2,2430.0,0.803]
[1728350737373,1.9027,2430.2,2429.6,5.28583198]
[1728350737374,0.41165,2429.8,2429.6,5.28583198]
[1728350737576,0.41165,2429.8,2429.7,0.8104]
[1728350737769,1.48,2429.9,2429.7,0.8104]
[1728350737976,0.41162,2430.0,2429.7,1.22206]
[1728350739074,0.4227,2430.1,2429.9,0.41163]
[1728350739276,0.83428,2430.2,2430.0,0.83681]
[1728350739480,0.4227,2430.2,2430.1,0.423]
[1728350742683,1.89157,2430.3,2430.1,0.423]
[1728350743482,0.41158,2430.2,2430.1,0.423]
[1728350744278,1.89158,2430.3,2430.1,0.423]
[1728350745282,3.2078,2430.5,2430.1,0.423]
[1728350745481,0.41156,2430.4,2430.1,0.83459]
[1728350745989,4.6878,2430.5,2430.1,0.423]
[1728350746187,0.41158,2430.2,2430.1,0.423]
[1728350746480,0.4116,2430.1,2430.0,0.4252]
[1728350746680,0.4116,2430.1,2430.0,0.8469]
[1728350747483,0.4116,2430.1,2429.8,3.61945]
[1728350747681,2.304,2430.2,2429.7,1.24546]
[1728350747883,0.41164,2429.9,2429.7,1.24546]
[1728350748479,0.41165,2429.8,2429.7,1.24546]
[1728350748675,0.41165,2429.8,2429.7,0.8338]
[1728350749692,0.81585,2429.8,2429.7,0.8338]
[1728350751584,0.81585,2429.8,2429.7,0.4121]
[1728350751787,0.41168,2429.7,2429.5,5.8997]
[1728350753284,0.41169,2429.6,2429.5,5.8997]
[1728350753484,0.41169,2429.6,2429.5,2.6919]
[1728350754087,3.2078,2430.5,2430.0,0.4116]
[1728350754285,0.41158,2430.2,2430.1,0.3995]
[1728350754786,5.06615,2430.5,2430.1,0.3995]
[1728350754787,6.54615,2430.5,2430.1,0.3995]
[1728350755087,0.41156,2430.4,2430.2,1.89158]
[1728350755385,3.2078,2430.5,2430.2,1.9034]
[1728350755588,3.2078,2430.5,2430.2,2.31498]
[1728350755790,3.61935,2430.5,2430.2,2.31498]
[1728350756181,0.41164,2429.9,2429.8,0.096]
[1728350756386,0.41165,2429.8,2429.7,0.3995]
[1728350757284,0.41164,2429.9,2429.7,0.3995]
[1728350758895,0.41164,2429.9,2429.8,0.3937]
[1728350759383,0.41165,2429.8,2429.7,0.3995]
[1728350760693,0.41165,2429.9,2429.7,0.3995]
[1728350761886,1.4148,2430.4,2429.8,3.2078]
[1728350762094,0.41161,2430.1,2429.8,4.02044]
[1728350762294,0.41161,2430.1,2429.9,0.385]
[1728350763499,0.41162,2430.0,2429.9,0.385]
[1728350764098,0.41165,2429.8,2429.7,0.3995]
[1728350764297,0.41165,2429.8,2429.7,0.7912]
[1728350764597,0.41165,2429.8,2429.7,0.3995]
[1728350764796,0.81555,2429.8,2429.7,0.3995]
[1728350768697,0.82435,2429.9,2429.7,0.3995]
[1728350769106,0.82435,2429.9,2429.8,0.4248]
[1728350769606,0.41162,2430.1,2429.8,4.95165]
[1728350769905,4.64893,2430.3,2429.8,4.95165]
[1728350769906,0.4261,2430.2,2429.9,0.425]
[1728350770096,0.41162,2430.0,2429.9,0.425]
[1728350771599,0.4116,2430.1,2429.9,0.425]
[1728350771799,0.41162,2430.0,2429.9,0.425]
[1728350774103,0.41162,2430.0,2429.8,3.6326]
[1728350774304,0.41162,2430.0,2429.9,0.3903]
[1728350779704,1.45508,2430.2,2429.8,0.4248]
[1728350779705,0.41164,2429.9,2429.8,0.4248]
[1728350780106,0.41164,2429.9,2429.8,4.54]
[1728350780306,0.41164,2429.9,2429.8,0.4248]
[1728350780502,0.41164,2429.9,2429.8,4.54]
[1728350780707,0.41164,2429.9,2429.8,0.4248]
[1728350781406,0.41164,2429.9,2429.8,4.54]
[1728350781909,0.8368,2430.2,2429.8,4.54]
[1728350782105,0.41161,2430.1,2429.9,0.41162]
[1728350782301,0.41161,2430.1,2429.8,0.4248]
[1728350782501,0.41161,2430.1,2430.0,0.41162]
[1728350783514,1.02896,2430.3,2429.9,0.41162]
[1728350783911,0.41161,2430.1,2429.9,0.41162]
[1728350784610,0.41161,2430.1,2429.8,0.4248]
[1728350784909,0.8275,2430.4,2430.1,0.4116]
[1728350784910,0.41159,2430.2,2430.1,0.4116]
[1728350785706,0.8275,2430.4,2430.1,4.1152]
[1728350785907,0.41156,2430.4,2430.3,0.41156]
[1728350786407,0.41156,2430.4,2430.3,4.52596]
[1728350786813,6.4178,2430.5,2430.2,0.8307]
[1728350787111,0.41157,2430.3,2430.2,0.4214]
[1728350787500,0.41162,2430.0,2429.9,0.80113]
[1728350787704,0.41162,2430.0,2429.9,0.3895]
[1728350787903,0.41162,2430.0,2429.9,4.91634]
[1728350788101,0.41162,2430.0,2429.9,4.5047]
[1728350788305,0.41162,2430.0,2429.9,4.91634]
[1728350788920,1.02898,2430.2,2430.0,0.4116]
[1728350788921,0.4116,2430.2,2430.0,0.4116]
[1728350789115,0.4116,2430.2,2430.1,0.4116]
[1728350789417,0.4134,2430.3,2430.0,3.2078]
[1728350789603,0.41159,2430.2,2430.1,0.41159]
[1728350790319,0.4134,2430.3,2430.1,4.1152]
[1728350790614,0.4134,2430.3,2430.0,3.2078]
[1728350790615,0.82498,2430.3,2430.2,0.82298]
[1728350790820,0.41158,2430.3,2430.2,0.82298]
[1728350791019,0.4164,2430.4,2430.2,0.4114]
[1728350791206,0.41157,2430.3,2430.2,0.82297]
[1728350793122,0.41157,2430.3,2430.2,0.4114]
[1728350793515,0.41157,2430.3,2430.2,0.82298]
[1728350795819,0.82796,2430.4,2430.3,0.41157]
[1728350796115,0.82796,2430.4,2430.3,4.52597]
[1728350796321,1.02881,2430.6,2430.3,4.1144]
[1728350796516,0.41155,2430.4,2430.3,0.81745]
[1728350796814,0.41155,2430.4,2430.3,0.81746]
[1728350797020,0.41155,2430.5,2430.4,0.41155]
[1728350797212,0.41155,2430.4,2430.3,0.81746]
[1728350797617,0.41155,2430.4,2430.3,4.93186]
[1728350798323,0.41155,2430.4,2430.3,4.5203]
[1728350801319,0.41155,2430.4,2430.3,4.93187]
[1728350801515,1.19844,2430.5,2430.3,4.5203]
[1728350801819,1.19844,2430.5,2430.3,0.81746]
[1728350802022,0.7869,2430.5,2430.3,0.4059]
[1728350802225,1.42399,2430.9,2430.3,7.7303]
[1728350802521,1.42399,2430.9,2430.3,3.6159]
[1728350802522,0.41152,2430.6,2430.3,3.6159]
[1728350802716,0.7935,2430.8,2430.3,0.4059]
[1728350802918,0.7935,2430.8,2430.7,0.4115]
[1728350803124,0.3875,2431.2,2430.7,4.1136]
[1728350803325,0.41149,2430.8,2430.6,0.80591]
[1728350803629,0.41149,2430.8,2430.6,0.3944]
[1728350803826,0.81079,2430.8,2430.7,4.9322]
[1728350804229,0.3993,2430.8,2430.7,4.9322]
[1728350805434,0.81078,2430.8,2430.7,4.9322]
[1728350805924,0.3993,2430.8,2430.7,4.9322]
[1728350808032,0.3993,2430.8,2430.7,8.14]
[1728350809726,0.3993,2430.8,2430.7,8.557]
[1728350811026,0.3993,2430.8,2430.7,8.5562]
[1728350811934,0.3914,2430.9,2430.7,8.1447]
[1728350812129,0.3914,2430.9,2430.8,0.41148]
[1728350812330,0.80287,2430.9,2430.8,0.41148]
[1728350812832,0.80287,2430.9,2430.7,4.44259]
[1728350812833,0.41148,2430.8,2430.7,4.44259]
[1728350813029,0.80287,2430.9,2430.8,0.41148]
[1728350813234,0.80287,2430.9,2430.8,1.89148]
[1728350813934,0.41148,2430.8,2430.7,4.44259]
[1728350814331,0.41148,2430.8,2430.7,3.2078]
[1728350814526,0.79908,2430.8,2430.7,3.2078]
[1728350814728,0.3876,2430.8,2430.5,0.41153]
[1728350814938,0.41152,2430.6,2430.5,0.41153]
[1728350815432,0.3941,2430.7,2430.5,1.48]
[1728350815735,0.3941,2430.7,2430.6,5.09932]
[1728350816134,0.8056,2430.7,2430.6,5.09932]
[1728350817634,0.3941,2430.7,2430.6,5.09932]
[1728350818033,0.3941,2430.7,2430.6,1.89152]
[1728350818434,0.8056,2430.7,2430.6,1.89152]
[1728350818633,0.3941,2430.7,2430.6,1.89152]
[1728350819436,0.3914,2430.9,2430.8,0.41148]
[1728350819737,0.41145,2431.1,2431.0,0.41145]
[1728350819943,0.83395,2431.1,2431.0,0.41145]
[1728350820135,0.4225,2431.1,2430.9,0.4056]
[1728350820334,0.41145,2431.0,2430.9,0.4056]
[1728350820532,0.4225,2431.1,2430.8,0.41147]
[1728350820737,0.81417,2430.9,2430.8,0.41147]
[1728350821433,0.4027,2430.9,2430.8,0.41147]
[1728350822639,0.4027,2430.9,2430.6,1.48]
[1728350822839,0.4027,2430.9,2430.7,0.41149]
[1728350822840,0.42,2430.8,2430.7,0.41149]
[1728350823043,0.83148,2430.8,2430.7,0.41149]
[1728350825948,0.42,2430.8,2430.6,1.48]
[1728350826246,0.41152,2430.6,2430.5,3.2078]
[1728350826544,0.42,2430.8,2430.5,3.2078]
[1728350826742,0.4115,2430.7,2430.6,0.4115]
[1728350827142,0.42,2430.8,2430.5,3.2078]
[1728350827345,0.4115,2430.7,2430.6,0.4115]
[1728350827539,0.83149,2430.8,2430.7,0.4115]
[1728350831747,0.42,2430.8,2430.7,0.4115]
[1728350831946,0.42,2430.8,2430.6,1.48]
[1728350832150,0.8315,2430.8,2430.7,0.4115]
[1728350833248,0.42,2430.8,2430.7,0.4115]
[1728350835443,0.42,2430.8,2430.7,1.8915]
[1728350835649,0.3988,2431.0,2430.7,1.48]
[1728350835950,1.22045,2431.0,2430.9,0.41147]
[1728350836755,0.82165,2431.0,2430.9,0.41147]
[1728350837548,0.82165,2431.0,2430.8,3.9887]
[1728350837748,0.82165,2431.0,2430.9,0.41147]
[1728350838349,0.4102,2431.0,2430.9,0.41147]
[1728350838545,0.4157,2431.2,2431.0,0.41144]
[1728350838546,0.82712,2431.2,2431.0,0.41144]
[1728350838746,0.8412,2431.2,2431.1,0.81663]
[1728350838957,1.25262,2431.2,2431.1,0.81663]